[Event "*** SCC Grand Prix: Titled Tuesday Blitz"]
[Site "Chess.com"]
[Date "2020.10.06"]
[Round "6"]
[White "Aygehovit1992"]
[Black "chenxiaoyuer"]
[Result "0-1"]
[WhiteElo "2620"]
[BlackElo "2495"]
[TimeControl "180+1"]
[EndTime "11:07:05 PDT"]
[Termination "chenxiaoyuer won by resignation"]

1. d4 {[%clk 0:03:00.9]} 1... Nf6 {[%clk 0:02:59.4]} 2. g3 {[%clk 0:03:00.2]}
2... g6 {[%clk 0:02:59.7]} 3. Bg2 {[%clk 0:03:00.6]} 3... Bg7 {[%clk 0:03:00.6]}
4. Nc3 {[%clk 0:03:00.4]} 4... d5 {[%clk 0:02:59.4]} 5. Bg5 {[%clk 0:02:58.7]}
5... c6 {[%clk 0:02:58.4]} 6. Qd2 {[%clk 0:02:58.8]} 6... O-O {[%clk 0:02:46.1]}
7. h4 {[%clk 0:02:58]} 7... Qb6 {[%clk 0:02:37.3]} 8. O-O-O {[%clk 0:02:57.2]}
8... Nbd7 {[%clk 0:02:35.1]} 9. Bh6 {[%clk 0:02:55.4]} 9... Bxh6 {[%clk
0:02:33.2]} 10. Qxh6 {[%clk 0:02:56.3]} 10... e5 {[%clk 0:02:31.3]} 11. Nf3
{[%clk 0:01:41.1]} 11... Ng4 {[%clk 0:02:15]} 12. Qg5 {[%clk 0:01:39.8]} 12...
Nxf2 {[%clk 0:02:10.6]} 13. dxe5 {[%clk 0:01:38]} 13... Nxh1 {[%clk 0:02:01.5]}
14. Rxh1 {[%clk 0:01:36.2]} 14... Qd8 {[%clk 0:01:58.8]} 15. Qh6 {[%clk
0:01:33.8]} 15... f6 {[%clk 0:01:51.5]} 16. h5 {[%clk 0:01:18.8]} 16... g5
{[%clk 0:01:48.5]} 17. exf6 {[%clk 0:00:52.5]} 17... Qxf6 {[%clk 0:01:44.2]} 18.
Qxg5+ {[%clk 0:00:52.7]} 18... Qxg5+ {[%clk 0:01:44]} 19. Nxg5 {[%clk
0:00:53.6]} 19... Rf2 {[%clk 0:01:42.3]} 20. Bh3 {[%clk 0:00:50.2]} 20... Ne5
{[%clk 0:01:40.6]} 21. e4 {[%clk 0:00:39.7]} 21... Bxh3 {[%clk 0:01:30.6]} 22.
Nxh3 {[%clk 0:00:40.6]} 22... Rf3 {[%clk 0:01:27.9]} 23. exd5 {[%clk 0:00:40]}
23... Rxg3 {[%clk 0:01:26.7]} 24. Nf4 {[%clk 0:00:32.3]} 24... Kh8 {[%clk
0:01:23.9]} 25. Re1 {[%clk 0:00:30.3]} 25... Nf3 {[%clk 0:01:23.3]} 26. Re3
{[%clk 0:00:19.6]} 26... Rg1+ {[%clk 0:01:21]} 27. Nd1 {[%clk 0:00:19.8]} 27...
Ng5 {[%clk 0:01:20]} 28. d6 {[%clk 0:00:19.8]} 28... Rd8 {[%clk 0:01:19.1]} 29.
Rd3 {[%clk 0:00:19]} 29... Rf1 {[%clk 0:01:13.7]} 30. Ne2 {[%clk 0:00:14.3]}
30... Ne4 {[%clk 0:01:12.4]} 31. d7 {[%clk 0:00:12.7]} 31... Nf2 {[%clk
0:01:11.9]} 32. Rd2 {[%clk 0:00:08]} 32... Nxd1 {[%clk 0:01:11.6]} 33. Rxd1
{[%clk 0:00:08.6]} 33... Rxd1+ {[%clk 0:01:12.5]} 34. Kxd1 {[%clk 0:00:09.5]}
34... Rxd7+ {[%clk 0:01:13.4]} 35. Ke1 {[%clk 0:00:10.2]} 35... Rd5 {[%clk
0:01:13.4]} 36. Nf4 {[%clk 0:00:09.2]} 36... Rf5 {[%clk 0:01:13.6]} 37. Ne6
{[%clk 0:00:09.5]} 37... Re5+ {[%clk 0:01:13.8]} 0-1

[Event "*** SCC Grand Prix: Titled Tuesday Blitz"]
[Site "Chess.com"]
[Date "2020.10.06"]
[Round "6"]
[White "JuliaEfremova"]
[Black "Alexandercs432"]
[Result "1-0"]
[WhiteElo "2328"]
[BlackElo "2144"]
[TimeControl "180+1"]
[EndTime "11:07:05 PDT"]
[Termination "JuliaEfremova won on time"]

1. e4 {[%clk 0:03:00.9]} 1... e5 {[%clk 0:02:59.7]} 2. Nf3 {[%clk 0:02:59.8]}
2... Nf6 {[%clk 0:03:00.1]} 3. Nc3 {[%clk 0:02:56.4]} 3... Nc6 {[%clk
0:02:59.9]} 4. d4 {[%clk 0:02:55.3]} 4... exd4 {[%clk 0:03:00.8]} 5. Nxd4 {[%clk
0:02:55.3]} 5... Bb4 {[%clk 0:03:00.8]} 6. Nxc6 {[%clk 0:02:54.7]} 6... bxc6
{[%clk 0:03:01.7]} 7. Bd3 {[%clk 0:02:54.1]} 7... d5 {[%clk 0:03:02.2]} 8. exd5
{[%clk 0:02:53.6]} 8... cxd5 {[%clk 0:03:03.1]} 9. O-O {[%clk 0:02:52.6]} 9...
O-O {[%clk 0:03:03.6]} 10. Bg5 {[%clk 0:02:50.1]} 10... c6 {[%clk 0:03:03.8]}
11. Qf3 {[%clk 0:02:48.9]} 11... Bd6 {[%clk 0:03:03.6]} 12. h3 {[%clk
0:02:34.8]} 12... h6 {[%clk 0:03:03.6]} 13. Bh4 {[%clk 0:02:29]} 13... Rb8
{[%clk 0:03:03.6]} 14. Rab1 {[%clk 0:02:26]} 14... Be6 {[%clk 0:02:33.5]} 15.
Ne2 {[%clk 0:02:19.9]} 15... c5 {[%clk 0:01:55.1]} 16. Bf5 {[%clk 0:02:17.3]}
16... Bxf5 {[%clk 0:01:43.4]} 17. Qxf5 {[%clk 0:02:18.2]} 17... Be7 {[%clk
0:01:14.2]} 18. Rfd1 {[%clk 0:02:13.3]} 18... d4 {[%clk 0:00:39.9]} 19. c3
{[%clk 0:02:11.7]} 19... Qd5 {[%clk 0:00:04.2]} 20. Qxd5 {[%clk 0:01:51.4]}
20... Nxd5 {[%clk 0:00:05.1]} 21. Bxe7 {[%clk 0:01:51.4]} 21... Nxe7 {[%clk
0:00:06]} 22. cxd4 {[%clk 0:01:52.1]} 22... cxd4 {[%clk 0:00:06.4]} 23. Nxd4
{[%clk 0:01:53]} 23... Rfe8 {[%clk 0:00:03.9]} 24. b3 {[%clk 0:01:51.7]} 24...
Ng6 {[%clk 0:00:03.7]} 25. Nc6 {[%clk 0:01:49.4]} 25... Rbc8 {[%clk 0:00:03.1]}
26. Nxa7 {[%clk 0:01:45.9]} 26... Ra8 {[%clk 0:00:02.7]} 27. Rd7 {[%clk
0:01:46.3]} 27... Re2 {[%clk 0:00:01.7]} 28. a4 {[%clk 0:01:45]} 28... Ra2
{[%clk 0:00:01.5]} 29. Rbd1 {[%clk 0:01:41.8]} 29... Ne5 {[%clk 0:00:02]} 30.
Rd8+ {[%clk 0:01:41.2]} 30... Rxd8 {[%clk 0:00:02.5]} 31. Rxd8+ {[%clk
0:01:41.1]} 31... Kh7 {[%clk 0:00:03.4]} 32. Nb5 {[%clk 0:01:36.7]} 32... Nc6
{[%clk 0:00:02.7]} 33. Rd7 {[%clk 0:01:31.8]} 33... Nb4 {[%clk 0:00:02.2]} 34.
Rxf7 {[%clk 0:01:30.4]} 34... Nd3 {[%clk 0:00:02.1]} 35. Nd4 {[%clk 0:01:21.8]}
35... Nxf2 {[%clk 0:00:01.6]} 36. Rxf2 {[%clk 0:01:20.6]} 1-0

[Event "*** SCC Grand Prix: Titled Tuesday Blitz"]
[Site "Chess.com"]
[Date "2020.10.06"]
[Round "6"]
[White "Sacbutt"]
[Black "Forantes"]
[Result "0-1"]
[WhiteElo "2283"]
[BlackElo "2428"]
[TimeControl "180+1"]
[EndTime "11:07:09 PDT"]
[Termination "Forantes won by checkmate"]

1. e4 {[%clk 0:03:00.9]} 1... c5 {[%clk 0:03:00.1]} 2. Nf3 {[%clk 0:03:00.6]}
2... Nc6 {[%clk 0:03:00.6]} 3. d4 {[%clk 0:03:00.8]} 3... cxd4 {[%clk
0:03:01.5]} 4. c3 {[%clk 0:03:01.4]} 4... d3 {[%clk 0:02:58.1]} 5. Bxd3 {[%clk
0:03:01.1]} 5... g6 {[%clk 0:02:58.7]} 6. O-O {[%clk 0:03:00.8]} 6... Bg7 {[%clk
0:02:59.4]} 7. c4 {[%clk 0:03:01.3]} 7... d6 {[%clk 0:03:00]} 8. Nc3 {[%clk
0:03:01.6]} 8... Nf6 {[%clk 0:03:00.7]} 9. h3 {[%clk 0:02:58.2]} 9... O-O {[%clk
0:03:00.2]} 10. Be3 {[%clk 0:02:57.9]} 10... b6 {[%clk 0:03:00.7]} 11. Qd2
{[%clk 0:02:56.5]} 11... Bb7 {[%clk 0:03:01.3]} 12. Rfe1 {[%clk 0:02:55.3]}
12... Nd7 {[%clk 0:03:01.3]} 13. Bh6 {[%clk 0:02:53.1]} 13... Nde5 {[%clk
0:03:01.5]} 14. Nxe5 {[%clk 0:02:49.4]} 14... Nxe5 {[%clk 0:03:01.4]} 15. Bxg7
{[%clk 0:02:49.4]} 15... Kxg7 {[%clk 0:03:01.5]} 16. b3 {[%clk 0:02:48.3]} 16...
Rc8 {[%clk 0:02:59.7]} 17. Rad1 {[%clk 0:02:45.9]} 17... Qd7 {[%clk 0:02:56.7]}
18. f4 {[%clk 0:02:38.4]} 18... Nc6 {[%clk 0:02:54.8]} 19. Nd5 {[%clk
0:02:35.3]} 19... e6 {[%clk 0:02:50.9]} 20. Ne3 {[%clk 0:02:34.4]} 20... Rcd8
{[%clk 0:02:45.6]} 21. Rf1 {[%clk 0:02:30.1]} 21... f5 {[%clk 0:02:32.1]} 22.
exf5 {[%clk 0:02:22.1]} 22... gxf5 {[%clk 0:02:31.8]} 23. g4 {[%clk 0:02:14.8]}
23... Kf7 {[%clk 0:01:38.3]} 24. gxf5 {[%clk 0:02:04.1]} 24... Rg8+ {[%clk
0:01:38.1]} 25. Kh2 {[%clk 0:02:03.9]} 25... Nd4 {[%clk 0:01:35.1]} 26. fxe6+
{[%clk 0:01:53.3]} 26... Qxe6 {[%clk 0:01:34.5]} 27. Be2 {[%clk 0:01:25.5]}
27... Nxe2 {[%clk 0:01:09.3]} 28. Qxe2 {[%clk 0:01:24.8]} 28... Qxe3 {[%clk
0:01:03]} 29. Qh5+ {[%clk 0:01:01.6]} 29... Rg6 {[%clk 0:01:01.9]} 30. Qxh7+
{[%clk 0:00:59.1]} 30... Rg7 {[%clk 0:00:55.7]} 31. Qc2 {[%clk 0:00:16.9]} 31...
Qg3# {[%clk 0:00:53.9]} 0-1

[Event "*** SCC Grand Prix: Titled Tuesday Blitz"]
[Site "Chess.com"]
[Date "2020.10.06"]
[Round "6"]
[White "korkmaz16"]
[Black "nochewycandy"]
[Result "1-0"]
[WhiteElo "2361"]
[BlackElo "2479"]
[TimeControl "180+1"]
[EndTime "11:07:12 PDT"]
[Termination "korkmaz16 won by checkmate"]

1. d4 {[%clk 0:03:00.9]} 1... Nf6 {[%clk 0:02:55.7]} 2. Nf3 {[%clk 0:03:00.4]}
2... e6 {[%clk 0:02:55.7]} 3. e3 {[%clk 0:02:59.8]} 3... b6 {[%clk 0:02:54.4]}
4. Bd3 {[%clk 0:02:56.6]} 4... Bb7 {[%clk 0:02:51.6]} 5. c4 {[%clk 0:02:56.4]}
5... Bb4+ {[%clk 0:02:49.8]} 6. Bd2 {[%clk 0:02:53.1]} 6... Bxd2+ {[%clk
0:02:48]} 7. Nbxd2 {[%clk 0:02:53.4]} 7... O-O {[%clk 0:02:48.2]} 8. Qc2 {[%clk
0:02:49.7]} 8... d6 {[%clk 0:02:45.6]} 9. O-O {[%clk 0:02:48.6]} 9... Nc6 {[%clk
0:02:44.9]} 10. a3 {[%clk 0:02:47.8]} 10... a5 {[%clk 0:02:42.4]} 11. Rfd1
{[%clk 0:02:46.9]} 11... e5 {[%clk 0:02:41.1]} 12. dxe5 {[%clk 0:02:45.8]} 12...
Nxe5 {[%clk 0:02:40.2]} 13. Nxe5 {[%clk 0:02:43.1]} 13... dxe5 {[%clk
0:02:41.1]} 14. Ne4 {[%clk 0:02:38.1]} 14... Nxe4 {[%clk 0:02:24.5]} 15. Bxe4
{[%clk 0:02:36.7]} 15... Bxe4 {[%clk 0:02:25.4]} 16. Qxe4 {[%clk 0:02:36.5]}
16... Qf6 {[%clk 0:02:25.3]} 17. Rd7 {[%clk 0:02:34.9]} 17... Rac8 {[%clk
0:02:24.3]} 18. b4 {[%clk 0:02:23.5]} 18... Qe6 {[%clk 0:02:18.7]} 19. Rad1
{[%clk 0:02:22.6]} 19... axb4 {[%clk 0:02:18.4]} 20. axb4 {[%clk 0:02:22.3]}
20... g6 {[%clk 0:02:11.3]} 21. c5 {[%clk 0:02:17.6]} 21... bxc5 {[%clk
0:02:10.8]} 22. bxc5 {[%clk 0:02:18.3]} 22... Rfe8 {[%clk 0:02:01.9]} 23. Qb7
{[%clk 0:02:10.7]} 23... c6 {[%clk 0:01:28.7]} 24. h3 {[%clk 0:02:04.5]} 24...
Rb8 {[%clk 0:01:18]} 25. Qc7 {[%clk 0:02:03.5]} 25... Rec8 {[%clk 0:01:14.1]}
26. Qd6 {[%clk 0:02:02.8]} 26... Qf5 {[%clk 0:01:01.5]} 27. Re7 {[%clk
0:01:29.3]} 27... Rb1 {[%clk 0:00:34.5]} 28. Rxb1 {[%clk 0:01:23.1]} 28... Qxb1+
{[%clk 0:00:35.4]} 29. Kh2 {[%clk 0:01:23.4]} 29... Qf5 {[%clk 0:00:20.1]} 30.
f3 {[%clk 0:01:16.1]} 30... f6 {[%clk 0:00:16.8]} 31. Re6 {[%clk 0:01:09.6]}
31... Rf8 {[%clk 0:00:16.1]} 32. Qxc6 {[%clk 0:01:07.9]} 32... Qg5 {[%clk
0:00:16.5]} 33. Qd5 {[%clk 0:01:05.5]} 33... Kg7 {[%clk 0:00:14]} 34. Re7+
{[%clk 0:01:05]} 34... Kh6 {[%clk 0:00:14.5]} 35. Qd7 {[%clk 0:01:04.3]} 35...
Qxe3 {[%clk 0:00:13.1]} 36. Rxh7+ {[%clk 0:01:03.8]} 36... Kg5 {[%clk
0:00:13.7]} 37. Qg4# {[%clk 0:01:04.3]} 1-0

[Event "*** SCC Grand Prix: Titled Tuesday Blitz"]
[Site "Chess.com"]
[Date "2020.10.06"]
[Round "6"]
[White "markberk"]
[Black "maximnovik"]
[Result "0-1"]
[WhiteElo "2393"]
[BlackElo "2536"]
[TimeControl "180+1"]
[EndTime "11:07:13 PDT"]
[Termination "maximnovik won on time"]

1. Nf3 {[%clk 0:03:00.9]} 1... Nf6 {[%clk 0:02:59.2]} 2. g3 {[%clk 0:02:58.1]}
2... g6 {[%clk 0:02:57.3]} 3. Bg2 {[%clk 0:02:58.1]} 3... Bg7 {[%clk 0:02:57.8]}
4. O-O {[%clk 0:02:58.6]} 4... O-O {[%clk 0:02:57.7]} 5. d4 {[%clk 0:02:59.1]}
5... d5 {[%clk 0:02:56]} 6. c4 {[%clk 0:02:58.3]} 6... dxc4 {[%clk 0:02:55.3]}
7. Na3 {[%clk 0:02:57.7]} 7... Nc6 {[%clk 0:02:52.7]} 8. Nxc4 {[%clk 0:02:56.4]}
8... Be6 {[%clk 0:02:53]} 9. b3 {[%clk 0:02:55.5]} 9... a5 {[%clk 0:02:52.1]}
10. a4 {[%clk 0:02:54.6]} 10... Bd5 {[%clk 0:02:51.3]} 11. Bb2 {[%clk
0:02:53.5]} 11... Nb4 {[%clk 0:02:51.2]} 12. e3 {[%clk 0:02:52.9]} 12... c6
{[%clk 0:02:51.2]} 13. Qe2 {[%clk 0:02:52.7]} 13... Qc7 {[%clk 0:02:46.1]} 14.
Rac1 {[%clk 0:02:48.2]} 14... Rfd8 {[%clk 0:02:44.5]} 15. Rfd1 {[%clk
0:02:41.7]} 15... b5 {[%clk 0:02:28.7]} 16. axb5 {[%clk 0:02:14.1]} 16... cxb5
{[%clk 0:02:27.9]} 17. Ncd2 {[%clk 0:02:11.2]} 17... Qb7 {[%clk 0:02:27.5]} 18.
Rc5 {[%clk 0:02:04.5]} 18... Rab8 {[%clk 0:02:24.7]} 19. e4 {[%clk 0:01:38.3]}
19... Bxe4 {[%clk 0:02:10.7]} 20. Nxe4 {[%clk 0:01:32.7]} 20... Qxe4 {[%clk
0:02:10.4]} 21. Qf1 {[%clk 0:01:25.2]} 21... Qe6 {[%clk 0:02:06]} 22. Rxb5
{[%clk 0:01:21.4]} 22... Qxb3 {[%clk 0:02:04.4]} 23. Rxb8 {[%clk 0:01:10.4]}
23... Rxb8 {[%clk 0:02:03.5]} 24. Bc1 {[%clk 0:01:00.6]} 24... Nfd5 {[%clk
0:02:03]} 25. Ne5 {[%clk 0:00:56]} 25... e6 {[%clk 0:02:01.6]} 26. Qc4 {[%clk
0:00:34.9]} 26... Qxc4 {[%clk 0:02:00]} 27. Nxc4 {[%clk 0:00:33.1]} 27... a4
{[%clk 0:01:58]} 28. Ba3 {[%clk 0:00:26.4]} 28... Nc2 {[%clk 0:01:56.9]} 29. Bc5
{[%clk 0:00:25.7]} 29... Nc3 {[%clk 0:01:45]} 30. Rd3 {[%clk 0:00:16.3]} 30...
Bxd4 {[%clk 0:01:35.3]} 31. Bc6 {[%clk 0:00:12.5]} 31... e5 {[%clk 0:01:25.2]}
32. Bxd4 {[%clk 0:00:10.2]} 32... Nxd4 {[%clk 0:01:18.4]} 33. Nxe5 {[%clk
0:00:08]} 33... a3 {[%clk 0:01:12.9]} 0-1

[Event "*** SCC Grand Prix: Titled Tuesday Blitz"]
[Site "Chess.com"]
[Date "2020.10.06"]
[Round "6"]
[White "Artyom_ChessMate"]
[Black "Region_07"]
[Result "1-0"]
[WhiteElo "2516"]
[BlackElo "2370"]
[TimeControl "180+1"]
[EndTime "11:07:16 PDT"]
[Termination "Artyom_ChessMate won on time"]

1. e4 {[%clk 0:03:00.9]} 1... Nc6 {[%clk 0:02:58.9]} 2. Nf3 {[%clk 0:03:00.5]}
2... d6 {[%clk 0:02:58.1]} 3. d4 {[%clk 0:03:00.4]} 3... g6 {[%clk 0:02:55.3]}
4. Nc3 {[%clk 0:03:00.1]} 4... Bg7 {[%clk 0:02:54.7]} 5. h3 {[%clk 0:02:59.8]}
5... Nf6 {[%clk 0:02:53.8]} 6. Be3 {[%clk 0:02:59.3]} 6... O-O {[%clk
0:02:54.1]} 7. Qd2 {[%clk 0:02:59.4]} 7... e5 {[%clk 0:02:52.4]} 8. d5 {[%clk
0:02:58.5]} 8... Nb8 {[%clk 0:02:48.9]} 9. O-O-O {[%clk 0:02:52.8]} 9... Nbd7
{[%clk 0:02:44.9]} 10. g4 {[%clk 0:02:48.9]} 10... Nc5 {[%clk 0:02:44.4]} 11.
Bxc5 {[%clk 0:02:41.7]} 11... dxc5 {[%clk 0:02:45.3]} 12. Be2 {[%clk 0:02:37]}
12... Ne8 {[%clk 0:02:38.1]} 13. g5 {[%clk 0:02:30.3]} 13... Nd6 {[%clk
0:02:16]} 14. h4 {[%clk 0:02:28.8]} 14... f6 {[%clk 0:02:16.1]} 15. gxf6 {[%clk
0:02:20]} 15... Qxf6 {[%clk 0:02:10.7]} 16. Rdg1 {[%clk 0:02:20.9]} 16... Qf4
{[%clk 0:02:09.1]} 17. h5 {[%clk 0:02:18.1]} 17... Bg4 {[%clk 0:01:53.7]} 18.
Qxf4 {[%clk 0:02:03.2]} 18... Rxf4 {[%clk 0:01:52.4]} 19. Ng5 {[%clk 0:02:02.8]}
19... Bh6 {[%clk 0:01:38.4]} 20. Bxg4 {[%clk 0:01:54.2]} 20... Rxf2 {[%clk
0:00:24.9]} 21. Be6+ {[%clk 0:01:50.9]} 21... Kg7 {[%clk 0:00:25]} 22. hxg6
{[%clk 0:01:49.4]} 22... hxg6 {[%clk 0:00:24.8]} 23. Kb1 {[%clk 0:01:46.7]}
23... Raf8 {[%clk 0:00:21.2]} 24. a3 {[%clk 0:01:32.1]} 24... b5 {[%clk
0:00:13.9]} 25. Nh3 {[%clk 0:01:29]} 25... Rd2 {[%clk 0:00:11.7]} 26. Rg4 {[%clk
0:01:09.9]} 26... b4 {[%clk 0:00:11.6]} 27. axb4 {[%clk 0:01:09.3]} 27... cxb4
{[%clk 0:00:11.2]} 28. Na4 {[%clk 0:01:08.7]} 28... Rf3 {[%clk 0:00:07.1]} 29.
Rhg1 {[%clk 0:01:00.8]} 1-0

[Event "*** SCC Grand Prix: Titled Tuesday Blitz"]
[Site "Chess.com"]
[Date "2020.10.06"]
[Round "6"]
[White "chorejason"]
[Black "barbara25"]
[Result "0-1"]
[WhiteElo "2154"]
[BlackElo "2332"]
[TimeControl "180+1"]
[EndTime "11:07:18 PDT"]
[Termination "barbara25 won by resignation"]

1. e4 {[%clk 0:03:00.9]} 1... c5 {[%clk 0:02:59.9]} 2. Nf3 {[%clk 0:03:00.5]}
2... d6 {[%clk 0:03:00.4]} 3. d4 {[%clk 0:03:01.1]} 3... cxd4 {[%clk 0:03:01.3]}
4. Nxd4 {[%clk 0:03:01.7]} 4... Nf6 {[%clk 0:03:01.8]} 5. Nc3 {[%clk 0:03:02.4]}
5... a6 {[%clk 0:03:02.3]} 6. Bc4 {[%clk 0:03:02.7]} 6... e6 {[%clk 0:03:01.8]}
7. O-O {[%clk 0:03:03.3]} 7... Be7 {[%clk 0:03:02.3]} 8. Bb3 {[%clk 0:03:03.1]}
8... O-O {[%clk 0:03:02.7]} 9. Be3 {[%clk 0:03:03.7]} 9... Nc6 {[%clk
0:03:03.2]} 10. f4 {[%clk 0:03:01.7]} 10... Nxd4 {[%clk 0:03:02.4]} 11. Bxd4
{[%clk 0:03:00.3]} 11... b5 {[%clk 0:03:02.9]} 12. e5 {[%clk 0:02:50.3]} 12...
dxe5 {[%clk 0:03:01.6]} 13. fxe5 {[%clk 0:02:50.4]} 13... Nd7 {[%clk 0:03:01.7]}
14. Qf3 {[%clk 0:02:30.4]} 14... Rb8 {[%clk 0:02:59.3]} 15. Rad1 {[%clk
0:02:27.4]} 15... Bb7 {[%clk 0:02:59]} 16. Qh5 {[%clk 0:02:27.4]} 16... Qc7
{[%clk 0:02:59]} 17. Rf2 {[%clk 0:02:08.7]} 17... Nc5 {[%clk 0:02:57.1]} 18.
Rdf1 {[%clk 0:02:04]} 18... Qc6 {[%clk 0:02:53]} 19. Ne2 {[%clk 0:01:35.9]}
19... Nxb3 {[%clk 0:02:52.3]} 20. cxb3 {[%clk 0:01:33.6]} 20... f6 {[%clk
0:02:52.6]} 21. Bc3 {[%clk 0:01:26.6]} 21... fxe5 {[%clk 0:02:46.6]} 22. Qxe5
{[%clk 0:01:13.5]} 22... Bf6 {[%clk 0:02:45.4]} 23. Nd4 {[%clk 0:01:13.7]} 23...
Bxe5 {[%clk 0:02:08.2]} 24. Nxc6 {[%clk 0:01:13.6]} 24... Rxf2 {[%clk
0:01:45.7]} 25. Rxf2 {[%clk 0:01:01.7]} 25... Bxh2+ {[%clk 0:01:39]} 26. Kxh2
{[%clk 0:00:58]} 26... Bxc6 {[%clk 0:01:38.9]} 27. Rd2 {[%clk 0:00:54.9]} 27...
Bd5 {[%clk 0:01:38.5]} 28. Be5 {[%clk 0:00:54.1]} 28... Rc8 {[%clk 0:01:37.7]}
29. Bc3 {[%clk 0:00:50.7]} 29... g6 {[%clk 0:01:34.8]} 30. Rf2 {[%clk
0:00:49.9]} 30... Rf8 {[%clk 0:01:34.2]} 31. Rxf8+ {[%clk 0:00:49]} 31... Kxf8
{[%clk 0:01:34.4]} 32. Kg3 {[%clk 0:00:49.7]} 32... Kf7 {[%clk 0:01:34.8]} 33.
Kf4 {[%clk 0:00:49.9]} 33... Bxg2 {[%clk 0:01:34.3]} 34. Kg5 {[%clk 0:00:47.6]}
34... h5 {[%clk 0:01:33.6]} 35. Be5 {[%clk 0:00:44.5]} 35... Be4 {[%clk
0:01:33.2]} 36. Bc3 {[%clk 0:00:42.6]} 36... Ke7 {[%clk 0:01:33.2]} 37. Be5
{[%clk 0:00:40.9]} 37... Kd7 {[%clk 0:01:33.2]} 38. Bf6 {[%clk 0:00:40.6]} 38...
Kd6 {[%clk 0:01:32.8]} 39. Kf4 {[%clk 0:00:41.1]} 39... Bf5 {[%clk 0:01:31.2]}
40. Ke3 {[%clk 0:00:36.1]} 40... e5 {[%clk 0:01:30.6]} 41. Bg5 {[%clk
0:00:36.3]} 41... Kd5 {[%clk 0:01:29.9]} 42. Kd2 {[%clk 0:00:35.9]} 42... Ke4
{[%clk 0:01:29.3]} 43. a4 {[%clk 0:00:27.4]} 43... Kf3 {[%clk 0:01:28]} 44. Bf6
{[%clk 0:00:23.7]} 44... e4 {[%clk 0:01:26.6]} 45. Bg5 {[%clk 0:00:23.7]} 45...
Kg4 {[%clk 0:01:24.9]} 46. Bf6 {[%clk 0:00:22.9]} 46... h4 {[%clk 0:01:24.7]}
47. Ke3 {[%clk 0:00:21.5]} 47... Kg3 {[%clk 0:01:25]} 48. Be5+ {[%clk
0:00:20.6]} 48... Kg2 {[%clk 0:01:25.1]} 0-1

[Event "*** SCC Grand Prix: Titled Tuesday Blitz"]
[Site "Chess.com"]
[Date "2020.10.06"]
[Round "6"]
[White "Alexander_Kachko"]
[Black "FMKonstantin_Twitch"]
[Result "1-0"]
[WhiteElo "2744"]
[BlackElo "2556"]
[TimeControl "180+1"]
[EndTime "11:07:23 PDT"]
[Termination "Alexander_Kachko won by resignation"]

1. e4 {[%clk 0:03:00.9]} 1... d5 {[%clk 0:02:58.1]} 2. Nc3 {[%clk 0:03:00.3]}
2... dxe4 {[%clk 0:02:56.8]} 3. Nxe4 {[%clk 0:03:01.2]} 3... Nf6 {[%clk
0:02:57.2]} 4. Nxf6+ {[%clk 0:03:01.3]} 4... exf6 {[%clk 0:02:58.1]} 5. d4
{[%clk 0:03:01.3]} 5... Bd6 {[%clk 0:02:58.8]} 6. Bd3 {[%clk 0:02:59.5]} 6...
O-O {[%clk 0:02:58.7]} 7. Ne2 {[%clk 0:02:59.6]} 7... Re8 {[%clk 0:02:58.7]} 8.
O-O {[%clk 0:02:58.3]} 8... c6 {[%clk 0:02:57.6]} 9. Bf4 {[%clk 0:02:44.2]} 9...
Bxf4 {[%clk 0:02:55.1]} 10. Nxf4 {[%clk 0:02:43.7]} 10... Qd6 {[%clk 0:02:55]}
11. Qd2 {[%clk 0:02:41.7]} 11... Be6 {[%clk 0:02:47.3]} 12. Rfe1 {[%clk
0:02:29.3]} 12... Nd7 {[%clk 0:02:45.5]} 13. c3 {[%clk 0:02:22.9]} 13... Nf8
{[%clk 0:02:44.1]} 14. Nxe6 {[%clk 0:01:48.7]} 14... Nxe6 {[%clk 0:02:41.7]} 15.
Rad1 {[%clk 0:01:44.7]} 15... g6 {[%clk 0:02:33.1]} 16. Bc4 {[%clk 0:01:41.4]}
16... Nc7 {[%clk 0:02:27.1]} 17. Rxe8+ {[%clk 0:01:40.1]} 17... Rxe8 {[%clk
0:02:24.8]} 18. Re1 {[%clk 0:01:39]} 18... Rxe1+ {[%clk 0:02:23.8]} 19. Qxe1
{[%clk 0:01:39.9]} 19... Kg7 {[%clk 0:02:24.1]} 20. g3 {[%clk 0:01:37.7]} 20...
h5 {[%clk 0:02:19.5]} 21. Qe3 {[%clk 0:01:31]} 21... Ne6 {[%clk 0:02:07.8]} 22.
h4 {[%clk 0:01:26.2]} 22... Kf8 {[%clk 0:01:51.6]} 23. a4 {[%clk 0:01:24.8]}
23... Ke7 {[%clk 0:01:47]} 24. f4 {[%clk 0:01:21.1]} 24... f5 {[%clk 0:01:45.9]}
25. Kf2 {[%clk 0:01:20.2]} 25... Kf8 {[%clk 0:01:42.9]} 26. b4 {[%clk
0:01:17.6]} 26... b6 {[%clk 0:01:40]} 27. Qe5 {[%clk 0:01:03.8]} 27... Qxe5
{[%clk 0:01:36.3]} 28. fxe5 {[%clk 0:01:03.8]} 28... Ke7 {[%clk 0:01:31.5]} 29.
b5 {[%clk 0:01:01.8]} 29... cxb5 {[%clk 0:01:31.7]} 30. axb5 {[%clk 0:01:01.6]}
30... f6 {[%clk 0:01:29.5]} 31. exf6+ {[%clk 0:00:59.7]} 31... Kxf6 {[%clk
0:01:29.3]} 32. Bxe6 {[%clk 0:00:49]} 32... Kxe6 {[%clk 0:01:30.2]} 33. Ke3
{[%clk 0:00:49.1]} 33... Kd5 {[%clk 0:01:30.3]} 34. Kd3 {[%clk 0:00:49.1]} 34...
Ke6 {[%clk 0:01:24.9]} 35. c4 {[%clk 0:00:46.4]} 35... Kf6 {[%clk 0:01:24.9]}
36. Ke3 {[%clk 0:00:37.8]} 36... g5 {[%clk 0:01:23.8]} 37. hxg5+ {[%clk
0:00:37]} 37... Kxg5 {[%clk 0:01:24.7]} 38. c5 {[%clk 0:00:37.4]} 38... Kf6
{[%clk 0:00:57.9]} 39. Kf4 {[%clk 0:00:32.9]} 39... Ke6 {[%clk 0:00:56.8]} 40.
c6 {[%clk 0:00:32.5]} 40... Kd6 {[%clk 0:00:51.2]} 41. d5 {[%clk 0:00:31.9]} 1-0